[Event "Titled Tuesday Blitz May 2 Early 2023"]
[White "Ansh M Shah"]
[Black "Sanchez, German"]
[WhiteFideId "25033379"]
[BlackFideId "4403959"]
[WhiteElo "2084"]
[BlackElo "1816"]
[Result "0-1"]
[Round "08"]
[TimeControl "180+2"]
[Date "2023.05.02"]
[WhiteClock "0:00:06"]
[BlackClock "0:00:06"]

1. d4 {[%clk 0:03:00]}  c5 {[%clk 0:02:58]} 2. c4 {[%clk 0:03:01]}  cxd4 {[%clk 0:02:58]} 3. Qxd4 {[%clk 0:03:01]}  Nc6 {[%clk 0:02:59]} 4. Qd1 {[%clk 0:03:02]}  e5 {[%clk 0:02:59]} 5. Nf3 {[%clk 0:03:03]}  e4 {[%clk 0:03:00]} 6. Nd4 {[%clk 0:03:03]}  Bc5 {[%clk 0:03:00]} 7. Nxc6 {[%clk 0:03:02]}  bxc6 {[%clk 0:03:00]} 8. Nc3 {[%clk 0:03:01]}  Nf6 {[%clk 0:02:59]} 9. Bg5 {[%clk 0:03:01]}  Bxf2+ {[%clk 0:02:58]} 10. Kxf2 {[%clk 0:02:57]}  Ng4+ {[%clk 0:02:58]} 11. Ke1 {[%clk 0:02:43]}  Qxg5 {[%clk 0:02:57]} 12. Nxe4 {[%clk 0:02:44]}  Qf4 {[%clk 0:02:21]} 13. Qd4 {[%clk 0:02:29]}  O-O {[%clk 0:01:43]} 14. g3 {[%clk 0:02:10]}  Qf5 {[%clk 0:01:29]} 15. Bh3 {[%clk 0:01:57]}  d5 {[%clk 0:01:26]} 16. Nd6 {[%clk 0:01:24]}  Qh5 {[%clk 0:01:00]} 17. Bg2 {[%clk 0:00:42]}  Be6 {[%clk 0:00:38]} 18. c5 {[%clk 0:00:34]}  Nf6 {[%clk 0:00:20]} 19. Bf3 {[%clk 0:00:27]}  Qg6 {[%clk 0:00:20]} 20. Kf2 {[%clk 0:00:26]}  Rab8 {[%clk 0:00:20]} 21. b4 {[%clk 0:00:24]}  a5 {[%clk 0:00:20]} 22. a3 {[%clk 0:00:24]}  axb4 {[%clk 0:00:20]} 23. axb4 {[%clk 0:00:25]}  h5 {[%clk 0:00:20]} 24. h4 {[%clk 0:00:24]}  Ng4+ {[%clk 0:00:17]} 25. Kg2 {[%clk 0:00:22]}  f5 {[%clk 0:00:15]} 26. Qf4 {[%clk 0:00:19]}  Qf6 {[%clk 0:00:09]} 27. Ra7 {[%clk 0:00:16]}  d4 {[%clk 0:00:07]} 28. Bxc6 {[%clk 0:00:14]}  Rxb4 {[%clk 0:00:07]} 29. Bf3 {[%clk 0:00:13]}  Rb2 {[%clk 0:00:07]} 30. c6 {[%clk 0:00:10]}  d3 {[%clk 0:00:06]} 31. Re1 {[%clk 0:00:09]}  dxe2 {[%clk 0:00:05]} 32. Rxe2 {[%clk 0:00:10]}  Rxe2+ {[%clk 0:00:03]} 33. Bxe2 {[%clk 0:00:11]}  Qb2 {[%clk 0:00:03]} 34. Qe3 {[%clk 0:00:07]}  Nxe3+ {[%clk 0:00:03]} 35. Kf3 {[%clk 0:00:07]}  Nd5 {[%clk 0:00:03]} 36. c7 {[%clk 0:00:07]}  Qc3+ {[%clk 0:00:04]} 37. Kf2 {[%clk 0:00:07]}  Nxc7 {[%clk 0:00:05]} 38. Nb5 {[%clk 0:00:05]}  Qc5+ {[%clk 0:00:05]} 39. Kg2 {[%clk 0:00:04]}  Nxb5 {[%clk 0:00:05]} 40. Ra5 {[%clk 0:00:05]}  Qe3 {[%clk 0:00:05]} 41. Kh3 {[%clk 0:00:05]}  Qxe2 {[%clk 0:00:05]} 42. Rxb5 {[%clk 0:00:06]}  Qg4+ {[%clk 0:00:05]} 43. Kg2 {[%clk 0:00:06]}  Rd8 {[%clk 0:00:06]} 0-1


[Site "https://www.chess.com"]

[Event "Titled Tuesday Blitz May 2 Early 2023"]
[White "Omariev, Maksim"]
[Black "Flis, Pawel"]
[WhiteFideId "4193423"]
[BlackFideId "1112864"]
[WhiteElo "2304"]
[BlackElo "1822"]
[Result "1-0"]
[Round "08"]
[TimeControl "180+2"]
[Date "2023.05.02"]
[WhiteClock "0:00:16"]
[BlackClock "0:00:03"]

1. g4 {[%clk 0:03:00]}  d5 {[%clk 0:02:58]} 2. Bg2 {[%clk 0:03:01]}  c6 {[%clk 0:02:58]} 3. h3 {[%clk 0:03:02]}  e5 {[%clk 0:02:56]} 4. d4 {[%clk 0:03:02]}  e4 {[%clk 0:02:56]} 5. c4 {[%clk 0:03:03]}  Be6 {[%clk 0:02:49]} 6. Nc3 {[%clk 0:03:03]}  Bb4 {[%clk 0:02:48]} 7. Bf4 {[%clk 0:03:00]}  Ne7 {[%clk 0:02:42]} 8. e3 {[%clk 0:03:00]}  Qa5 {[%clk 0:02:41]} 9. Ne2 {[%clk 0:03:00]}  O-O {[%clk 0:02:40]} 10. a3 {[%clk 0:02:55]}  Bxc3+ {[%clk 0:02:37]} 11. Nxc3 {[%clk 0:02:56]}  f5 {[%clk 0:02:33]} 12. b4 {[%clk 0:02:45]}  Qd8 {[%clk 0:02:32]} 13. c5 {[%clk 0:02:44]}  Ng6 {[%clk 0:02:24]} 14. Bd6 {[%clk 0:02:39]}  Rf7 {[%clk 0:02:13]} 15. Qe2 {[%clk 0:02:10]}  f4 {[%clk 0:02:02]} 16. f3 {[%clk 0:02:05]}  Qh4+ {[%clk 0:01:34]} 17. Kd2 {[%clk 0:02:03]}  exf3 {[%clk 0:01:27]} 18. Bxf3 {[%clk 0:02:00]}  Nd7 {[%clk 0:01:09]} 19. exf4 {[%clk 0:01:54]}  Re8 {[%clk 0:00:42]} 20. f5 {[%clk 0:01:46]}  Rxf5 {[%clk 0:00:38]} 21. gxf5 {[%clk 0:01:44]}  Bf7 {[%clk 0:00:27]} 22. Qd3 {[%clk 0:01:01]}  Nf4 {[%clk 0:00:22]} 23. Qf1 {[%clk 0:00:49]}  Nh5 {[%clk 0:00:17]} 24. Ne2 {[%clk 0:00:39]}  Ng3 {[%clk 0:00:14]} 25. Bxg3 {[%clk 0:00:36]}  Qg5+ {[%clk 0:00:11]} 26. Bf4 {[%clk 0:00:30]}  Qxf5 {[%clk 0:00:11]} 27. Bg4 {[%clk 0:00:27]}  Qe4 {[%clk 0:00:04]} 28. Bxd7 {[%clk 0:00:26]}  Bg6 {[%clk 0:00:05]} 29. Be5 {[%clk 0:00:20]}  Qd3+ {[%clk 0:00:02]} 30. Ke1 {[%clk 0:00:20]}  Rf8 {[%clk 0:00:03]} 31. Qg2 {[%clk 0:00:16]} 1-0


[Site "https://www.chess.com"]

[Event "Titled Tuesday Blitz May 2 Early 2023"]
[White "Schut, Han"]
[Black "Larina, Maria"]
[WhiteFideId "1005561"]
[BlackFideId "24113182"]
[WhiteElo "2024"]
[BlackElo "1848"]
[Result "0-1"]
[Round "08"]
[TimeControl "180+2"]
[Date "2023.05.02"]
[WhiteClock "0:00:48"]
[BlackClock "0:01:22"]

1. e4 {[%clk 0:02:59]}  c6 {[%clk 0:02:59]} 2. Nf3 {[%clk 0:03:00]}  d5 {[%clk 0:02:58]} 3. e5 {[%clk 0:03:00]}  Bg4 {[%clk 0:02:53]} 4. h3 {[%clk 0:02:52]}  Bxf3 {[%clk 0:02:52]} 5. Qxf3 {[%clk 0:02:53]}  e6 {[%clk 0:02:53]} 6. d4 {[%clk 0:02:47]}  Qb6 {[%clk 0:02:47]} 7. c3 {[%clk 0:02:44]}  Nd7 {[%clk 0:02:45]} 8. Nd2 {[%clk 0:02:31]}  c5 {[%clk 0:02:46]} 9. Nb3 {[%clk 0:02:31]}  cxd4 {[%clk 0:02:36]} 10. cxd4 {[%clk 0:02:29]}  Bb4+ {[%clk 0:02:35]} 11. Bd2 {[%clk 0:02:27]}  Bxd2+ {[%clk 0:02:33]} 12. Kxd2 {[%clk 0:02:27]}  Ne7 {[%clk 0:02:28]} 13. Bd3 {[%clk 0:02:20]}  a5 {[%clk 0:02:17]} 14. Rab1 {[%clk 0:01:22]}  a4 {[%clk 0:02:15]} 15. Nc5 {[%clk 0:01:21]}  Nxc5 {[%clk 0:02:10]} 16. dxc5 {[%clk 0:01:22]}  Qxc5 {[%clk 0:02:11]} 17. Qg3 {[%clk 0:01:20]}  O-O {[%clk 0:02:00]} 18. h4 {[%clk 0:01:10]}  Rfc8 {[%clk 0:01:39]} 19. h5 {[%clk 0:01:02]}  h6 {[%clk 0:01:33]} 20. Rh4 {[%clk 0:01:00]}  Nf5 {[%clk 0:01:23]} 21. Bxf5 {[%clk 0:00:55]}  exf5 {[%clk 0:01:24]} 22. Qd3 {[%clk 0:00:48]}  Qxf2+ {[%clk 0:01:22]} 0-1


[Site "https://www.chess.com"]

[Event "Titled Tuesday Blitz May 2 Early 2023"]
[White "Sadovsky, Artem"]
[Black "Quirke, Jeffrey"]
[WhiteFideId "4155840"]
[BlackFideId "2013029"]
[WhiteElo "2314"]
[BlackElo "2007"]
[Result "1-0"]
[Round "08"]
[TimeControl "180+2"]
[Date "2023.05.02"]
[WhiteClock "0:02:05"]
[BlackClock "0:00:31"]

1. Nf3 {[%clk 0:02:59]}  e6 {[%clk 0:02:57]} 2. e4 {[%clk 0:02:58]}  d5 {[%clk 0:02:54]} 3. Nc3 {[%clk 0:02:57]}  dxe4 {[%clk 0:02:49]} 4. Nxe4 {[%clk 0:02:56]}  Bd7 {[%clk 0:02:50]} 5. d4 {[%clk 0:02:55]}  Bc6 {[%clk 0:02:50]} 6. Bd3 {[%clk 0:02:56]}  Nd7 {[%clk 0:02:49]} 7. O-O {[%clk 0:02:56]}  Ngf6 {[%clk 0:02:49]} 8. Qe2 {[%clk 0:02:53]}  Nxe4 {[%clk 0:02:38]} 9. Bxe4 {[%clk 0:02:53]}  Bxe4 {[%clk 0:02:39]} 10. Qxe4 {[%clk 0:02:54]}  c6 {[%clk 0:02:40]} 11. c3 {[%clk 0:02:54]}  Be7 {[%clk 0:02:39]} 12. Bf4 {[%clk 0:02:53]}  O-O {[%clk 0:02:39]} 13. Rfe1 {[%clk 0:02:52]}  Nf6 {[%clk 0:02:36]} 14. Qc2 {[%clk 0:02:52]}  a5 {[%clk 0:02:35]} 15. a4 {[%clk 0:02:51]}  Nd5 {[%clk 0:02:32]} 16. Be5 {[%clk 0:02:50]}  Rc8 {[%clk 0:02:25]} 17. Qe4 {[%clk 0:02:48]}  Bf6 {[%clk 0:01:49]} 18. Qg4 {[%clk 0:02:47]}  Bxe5 {[%clk 0:01:46]} 19. Nxe5 {[%clk 0:02:46]}  c5 {[%clk 0:01:38]} 20. Rad1 {[%clk 0:02:44]}  cxd4 {[%clk 0:01:28]} 21. Rxd4 {[%clk 0:02:45]}  Qe7 {[%clk 0:01:21]} 22. h4 {[%clk 0:02:39]}  Rfd8 {[%clk 0:01:15]} 23. Nf3 {[%clk 0:02:36]}  Nf6 {[%clk 0:01:09]} 24. Qg5 {[%clk 0:02:36]}  Rxd4 {[%clk 0:01:05]} 25. Nxd4 {[%clk 0:02:37]}  Qc7 {[%clk 0:00:35]} 26. Nb5 {[%clk 0:02:07]}  Qc6 {[%clk 0:00:31]} 27. Na7 {[%clk 0:02:05]} 1-0


[Site "https://www.chess.com"]

[Event "Titled Tuesday Blitz May 2 Early 2023"]
[White "Buscar, Michael"]
[Black "Hartikainen, Jarmo"]
[WhiteFideId "2603616"]
[BlackFideId "503134"]
[WhiteElo "2010"]
[BlackElo "2108"]
[Result "1/2-1/2"]
[Round "08"]
[TimeControl "180+2"]
[Date "2023.05.02"]
[WhiteClock "0:00:06"]
[BlackClock "0:00:03"]

1. d4 {[%clk 0:03:00]}  Nf6 {[%clk 0:02:59]} 2. c4 {[%clk 0:02:58]}  g6 {[%clk 0:02:58]} 3. Nc3 {[%clk 0:02:58]}  d5 {[%clk 0:02:58]} 4. Nf3 {[%clk 0:02:57]}  Bg7 {[%clk 0:02:58]} 5. Qb3 {[%clk 0:02:56]}  dxc4 {[%clk 0:02:55]} 6. Qxc4 {[%clk 0:02:56]}  O-O {[%clk 0:02:50]} 7. g3 {[%clk 0:02:56]}  c6 {[%clk 0:02:48]} 8. Bg2 {[%clk 0:02:56]}  b5 {[%clk 0:02:47]} 9. Qd3 {[%clk 0:02:56]}  a6 {[%clk 0:02:45]} 10. O-O {[%clk 0:02:56]}  Bb7 {[%clk 0:02:44]} 11. Ne5 {[%clk 0:02:54]}  Qc8 {[%clk 0:02:27]} 12. Bf4 {[%clk 0:02:45]}  Nbd7 {[%clk 0:02:19]} 13. Rac1 {[%clk 0:02:38]}  c5 {[%clk 0:02:00]} 14. Bh3 {[%clk 0:02:23]}  c4 {[%clk 0:01:52]} 15. Qd2 {[%clk 0:02:20]}  e6 {[%clk 0:01:50]} 16. Bh6 {[%clk 0:02:12]}  Nxe5 {[%clk 0:01:43]} 17. dxe5 {[%clk 0:02:08]}  Qc6 {[%clk 0:01:42]} 18. f3 {[%clk 0:02:05]}  Qc5+ {[%clk 0:01:24]} 19. Be3 {[%clk 0:01:56]}  Qxe5 {[%clk 0:01:20]} 20. Bd4 {[%clk 0:01:52]}  Rfd8 {[%clk 0:00:52]} 21. Rfd1 {[%clk 0:01:42]}  Qc7 {[%clk 0:00:40]} 22. Qe3 {[%clk 0:01:35]}  b4 {[%clk 0:00:17]} 23. Bb6 {[%clk 0:01:26]}  Rxd1+ {[%clk 0:00:15]} 24. Nxd1 {[%clk 0:01:27]}  Qc6 {[%clk 0:00:15]} 25. Nf2 {[%clk 0:01:22]}  Nd5 {[%clk 0:00:14]} 26. Qc5 {[%clk 0:01:15]}  Qxb6 {[%clk 0:00:14]} 27. Qxb6 {[%clk 0:01:07]}  Nxb6 {[%clk 0:00:14]} 28. Bf1 {[%clk 0:01:07]}  Rc8 {[%clk 0:00:14]} 29. Rc2 {[%clk 0:01:06]}  b3 {[%clk 0:00:13]} 30. axb3 {[%clk 0:01:05]}  cxb3 {[%clk 0:00:13]} 31. Rd2 {[%clk 0:01:05]}  Rc2 {[%clk 0:00:13]} 32. Rd8+ {[%clk 0:01:05]}  Bf8 {[%clk 0:00:13]} 33. Rb8 {[%clk 0:01:02]}  Rc7 {[%clk 0:00:12]} 34. Nd3 {[%clk 0:01:00]}  Nd5 {[%clk 0:00:12]} 35. Kf2 {[%clk 0:00:53]}  Kg7 {[%clk 0:00:11]} 36. e4 {[%clk 0:00:47]}  Nb4 {[%clk 0:00:11]} 37. Ke3 {[%clk 0:00:42]}  Nc6 {[%clk 0:00:10]} 38. Re8 {[%clk 0:00:37]}  Rc8 {[%clk 0:00:11]} 39. Rxc8 {[%clk 0:00:36]}  Bxc8 {[%clk 0:00:12]} 40. Nc1 {[%clk 0:00:34]}  Na5 {[%clk 0:00:10]} 41. Kd4 {[%clk 0:00:32]}  Kf6 {[%clk 0:00:08]} 42. f4 {[%clk 0:00:29]}  Ke7 {[%clk 0:00:08]} 43. e5 {[%clk 0:00:23]}  Bg7 {[%clk 0:00:09]} 44. Kc3 {[%clk 0:00:21]}  f6 {[%clk 0:00:09]} 45. Kb4 {[%clk 0:00:14]}  Nc6+ {[%clk 0:00:07]} 46. Kc5 {[%clk 0:00:14]}  Bb7 {[%clk 0:00:07]} 47. Kb6 {[%clk 0:00:12]}  Ba8 {[%clk 0:00:07]} 48. Bxa6 {[%clk 0:00:07]}  fxe5 {[%clk 0:00:07]} 49. Nd3 {[%clk 0:00:08]}  exf4 {[%clk 0:00:07]} 50. gxf4 {[%clk 0:00:08]}  e5 {[%clk 0:00:07]} 51. Bb5 {[%clk 0:00:01]}  exf4 {[%clk 0:00:06]} 52. Nxf4 {[%clk 0:00:01]}  Nd4 {[%clk 0:00:05]} 53. Bc4 {[%clk 0:00:01]}  Nf3 {[%clk 0:00:04]} 54. h3 {[%clk 0:00:01]}  Be5 {[%clk 0:00:04]} 55. Nd3 {[%clk 0:00:01]}  Bd4+ {[%clk 0:00:04]} 56. Kb5 {[%clk 0:00:01]}  Ng5 {[%clk 0:00:04]} 57. Bxb3 {[%clk 0:00:01]}  Nxh3 {[%clk 0:00:04]} 58. Bg8 {[%clk 0:00:01]}  h5 {[%clk 0:00:04]} 59. b3 {[%clk 0:00:02]}  Ng5 {[%clk 0:00:04]} 60. Kc4 {[%clk 0:00:03]}  h4 {[%clk 0:00:04]} 61. Kxd4 {[%clk 0:00:02]}  h3 {[%clk 0:00:04]} 62. Nf2 {[%clk 0:00:02]}  h2 {[%clk 0:00:05]} 63. Bc4 {[%clk 0:00:03]}  h1=Q {[%clk 0:00:04]} 64. Nxh1 {[%clk 0:00:03]}  Bxh1 {[%clk 0:00:04]} 65. b4 {[%clk 0:00:04]}  Kd7 {[%clk 0:00:04]} 66. Ke5 {[%clk 0:00:04]}  Nf7+ {[%clk 0:00:04]} 67. Kf6 {[%clk 0:00:04]}  Nd6 {[%clk 0:00:04]} 68. Bd3 {[%clk 0:00:05]}  Kc6 {[%clk 0:00:04]} 69. Ke6 {[%clk 0:00:05]}  Nb5 {[%clk 0:00:04]} 70. Ke5 {[%clk 0:00:04]}  Bg2 {[%clk 0:00:04]} 71. Kf4 {[%clk 0:00:03]}  Bh3 {[%clk 0:00:03]} 72. Ke5 {[%clk 0:00:04]}  Bd7 {[%clk 0:00:03]} 73. Bxg6 {[%clk 0:00:04]}  Na3 {[%clk 0:00:02]} 74. Be4+ {[%clk 0:00:05]}  Kb5 {[%clk 0:00:02]} 75. Kd6 {[%clk 0:00:05]}  Kxb4 {[%clk 0:00:03]} 76. Kxd7 {[%clk 0:00:06]} 1/2-1/2


[Site "https://www.chess.com"]

[Event "Titled Tuesday Blitz May 2 Early 2023"]
[White "Vargas Rodriguez, Wilver"]
[Black "Barria Santos, Jose Guilherme"]
[WhiteFideId "3509672"]
[BlackFideId "1939300"]
[WhiteElo "2224"]
[BlackElo "2266"]
[Result "1-0"]
[Round "08"]
[TimeControl "180+2"]
[Date "2023.05.02"]
[WhiteClock "0:00:11"]
[BlackClock "0:00:02"]

1. e4 {[%clk 0:03:00]}  c6 {[%clk 0:02:59]} 2. Nf3 {[%clk 0:03:00]}  d5 {[%clk 0:02:59]} 3. Nc3 {[%clk 0:02:58]}  Bg4 {[%clk 0:02:59]} 4. d3 {[%clk 0:02:57]}  e6 {[%clk 0:02:59]} 5. h3 {[%clk 0:02:25]}  Bh5 {[%clk 0:02:53]} 6. g4 {[%clk 0:02:22]}  Bg6 {[%clk 0:02:53]} 7. exd5 {[%clk 0:02:20]}  cxd5 {[%clk 0:02:50]} 8. Bf4 {[%clk 0:02:15]}  Nc6 {[%clk 0:02:47]} 9. Qd2 {[%clk 0:02:15]}  Bd6 {[%clk 0:02:39]} 10. Bxd6 {[%clk 0:02:12]}  Qxd6 {[%clk 0:02:40]} 11. Bg2 {[%clk 0:02:12]}  Nge7 {[%clk 0:02:36]} 12. Ne2 {[%clk 0:02:00]}  O-O-O {[%clk 0:02:29]} 13. O-O-O {[%clk 0:01:52]}  e5 {[%clk 0:02:27]} 14. Ng3 {[%clk 0:01:39]}  Qc5 {[%clk 0:02:19]} 15. Nh4 {[%clk 0:01:36]}  Kb8 {[%clk 0:01:52]} 16. f4 {[%clk 0:01:27]}  exf4 {[%clk 0:01:40]} 17. Qxf4+ {[%clk 0:01:26]}  Ka8 {[%clk 0:01:37]} 18. Nxg6 {[%clk 0:01:13]}  Nxg6 {[%clk 0:01:32]} 19. Qd2 {[%clk 0:01:04]}  Rc8 {[%clk 0:01:22]} 20. Kb1 {[%clk 0:01:02]}  Nb4 {[%clk 0:01:13]} 21. c3 {[%clk 0:00:53]}  Nc6 {[%clk 0:00:56]} 22. d4 {[%clk 0:00:53]}  Qb6 {[%clk 0:00:42]} 23. Nf5 {[%clk 0:00:52]}  Rhd8 {[%clk 0:00:36]} 24. Nxg7 {[%clk 0:00:48]}  a5 {[%clk 0:00:31]} 25. Nf5 {[%clk 0:00:47]}  a4 {[%clk 0:00:29]} 26. Ne3 {[%clk 0:00:46]}  Qb5 {[%clk 0:00:19]} 27. Qd3 {[%clk 0:00:40]}  Qa5 {[%clk 0:00:16]} 28. Nc2 {[%clk 0:00:33]}  Nf4 {[%clk 0:00:11]} 29. Qd2 {[%clk 0:00:32]}  Nxg2 {[%clk 0:00:11]} 30. Qxg2 {[%clk 0:00:33]}  Ne7 {[%clk 0:00:09]} 31. Rhe1 {[%clk 0:00:30]}  Ng6 {[%clk 0:00:09]} 32. Na3 {[%clk 0:00:19]}  Rc6 {[%clk 0:00:08]} 33. Qc2 {[%clk 0:00:17]}  Rb6 {[%clk 0:00:08]} 34. Ka1 {[%clk 0:00:18]}  Rc8 {[%clk 0:00:07]} 35. Re2 {[%clk 0:00:15]}  Nf4 {[%clk 0:00:05]} 36. Re3 {[%clk 0:00:15]}  Ne6 {[%clk 0:00:04]} 37. Rde1 {[%clk 0:00:14]}  Nxd4 {[%clk 0:00:02]} 38. Qd2 {[%clk 0:00:11]} 1-0


[Site "https://www.chess.com"]

[Event "Titled Tuesday Blitz May 2 Early 2023"]
[White "Delorme, Axel"]
[Black "Van Baar, Esper"]
[WhiteFideId "632023"]
[BlackFideId "1049321"]
[WhiteElo "2478"]
[BlackElo "2180"]
[Result "1-0"]
[Round "08"]
[TimeControl "180+2"]
[Date "2023.05.02"]
[WhiteClock "0:00:50"]
[BlackClock "0:00:01"]

1. d4 {[%clk 0:03:00]}  Nf6 {[%clk 0:02:59]} 2. Nf3 {[%clk 0:02:55]}  d5 {[%clk 0:02:54]} 3. Bf4 {[%clk 0:02:54]}  e6 {[%clk 0:02:53]} 4. e3 {[%clk 0:02:54]}  c5 {[%clk 0:02:52]} 5. Nbd2 {[%clk 0:02:53]}  Bd6 {[%clk 0:02:50]} 6. Ne5 {[%clk 0:02:52]}  Qc7 {[%clk 0:02:49]} 7. Bg3 {[%clk 0:02:49]}  Nbd7 {[%clk 0:02:46]} 8. f4 {[%clk 0:02:48]}  O-O {[%clk 0:02:33]} 9. c3 {[%clk 0:02:47]}  b6 {[%clk 0:02:22]} 10. Bd3 {[%clk 0:02:45]}  Bb7 {[%clk 0:02:20]} 11. O-O {[%clk 0:02:45]}  Ne4 {[%clk 0:02:18]} 12. Qc2 {[%clk 0:02:38]}  f5 {[%clk 0:02:12]} 13. Ndf3 {[%clk 0:02:15]}  Nxe5 {[%clk 0:01:52]} 14. fxe5 {[%clk 0:02:11]}  Be7 {[%clk 0:01:48]} 15. Bh4 {[%clk 0:02:07]}  Bxh4 {[%clk 0:01:36]} 16. Nxh4 {[%clk 0:02:08]}  a5 {[%clk 0:01:15]} 17. a4 {[%clk 0:02:05]}  Ba6 {[%clk 0:01:12]} 18. Nf3 {[%clk 0:01:59]}  Bxd3 {[%clk 0:01:07]} 19. Qxd3 {[%clk 0:02:00]}  c4 {[%clk 0:01:05]} 20. Qe2 {[%clk 0:01:58]}  b5 {[%clk 0:01:05]} 21. axb5 {[%clk 0:01:55]}  Rfb8 {[%clk 0:01:05]} 22. Ra2 {[%clk 0:01:54]}  Rxb5 {[%clk 0:01:04]} 23. Rfa1 {[%clk 0:01:55]}  Qb6 {[%clk 0:00:49]} 24. Qc2 {[%clk 0:01:52]}  h6 {[%clk 0:00:38]} 25. Nd2 {[%clk 0:01:52]}  Nxd2 {[%clk 0:00:35]} 26. Qxd2 {[%clk 0:01:53]}  a4 {[%clk 0:00:34]} 27. Qc2 {[%clk 0:01:52]}  Rb3 {[%clk 0:00:31]} 28. g4 {[%clk 0:01:34]}  g6 {[%clk 0:00:11]} 29. gxf5 {[%clk 0:01:32]}  gxf5 {[%clk 0:00:11]} 30. Kh1 {[%clk 0:01:33]}  Qa7 {[%clk 0:00:08]} 31. Rg1+ {[%clk 0:01:26]}  Kh7 {[%clk 0:00:08]} 32. Qg2 {[%clk 0:01:12]}  Qf7 {[%clk 0:00:08]} 33. Qg3 {[%clk 0:01:06]}  a3 {[%clk 0:00:08]} 34. Rxa3 {[%clk 0:01:05]}  Rbxa3 {[%clk 0:00:08]} 35. bxa3 {[%clk 0:01:06]}  Rxa3 {[%clk 0:00:08]} 36. Qe1 {[%clk 0:01:01]}  Ra2 {[%clk 0:00:06]} 37. Qb1 {[%clk 0:00:58]}  Re2 {[%clk 0:00:05]} 38. Qb8 {[%clk 0:00:55]}  Rxe3 {[%clk 0:00:03]} 39. Rb1 {[%clk 0:00:54]}  Kg6 {[%clk 0:00:01]} 40. Rb7 {[%clk 0:00:50]} 1-0


[Site "https://www.chess.com"]

[Event "Titled Tuesday Blitz May 2 Early 2023"]
[White "Duda, Jan-Krzysztof"]
[Black "Gupta, Abhijeet"]
[WhiteFideId "1170546"]
[BlackFideId "5010608"]
[WhiteElo "2790"]
[BlackElo "2528"]
[Result "1-0"]
[Round "09"]
[TimeControl "180+2"]
[Date "2023.05.02"]
[WhiteClock "0:00:12"]
[BlackClock "0:00:57"]

1. d4 {[%clk 0:03:00]}  Nf6 {[%clk 0:02:59]} 2. c4 {[%clk 0:03:00]}  Nc6 {[%clk 0:02:57]} 3. Nf3 {[%clk 0:02:56]}  e6 {[%clk 0:02:57]} 4. a3 {[%clk 0:02:50]}  g6 {[%clk 0:02:57]} 5. Nc3 {[%clk 0:02:50]}  Bg7 {[%clk 0:02:57]} 6. Bf4 {[%clk 0:02:41]}  O-O {[%clk 0:02:54]} 7. e3 {[%clk 0:02:40]}  d6 {[%clk 0:02:52]} 8. Be2 {[%clk 0:02:35]}  b6 {[%clk 0:02:51]} 9. O-O {[%clk 0:02:33]}  Bb7 {[%clk 0:02:48]} 10. h3 {[%clk 0:02:33]}  Nd7 {[%clk 0:02:39]} 11. Bh2 {[%clk 0:02:30]}  e5 {[%clk 0:02:34]} 12. b4 {[%clk 0:02:28]}  exd4 {[%clk 0:02:30]} 13. exd4 {[%clk 0:02:27]}  a5 {[%clk 0:02:30]} 14. b5 {[%clk 0:02:24]}  Ne7 {[%clk 0:02:29]} 15. Nh4 {[%clk 0:01:28]}  Nc5 {[%clk 0:02:11]} 16. dxc5 {[%clk 0:01:19]}  Bxc3 {[%clk 0:02:09]} 17. cxd6 {[%clk 0:01:17]}  cxd6 {[%clk 0:02:07]} 18. Rb1 {[%clk 0:01:01]}  Bf6 {[%clk 0:02:03]} 19. Nf3 {[%clk 0:00:53]}  Rc8 {[%clk 0:02:03]} 20. Qb3 {[%clk 0:00:51]}  Nf5 {[%clk 0:02:01]} 21. Rbd1 {[%clk 0:00:50]}  Re8 {[%clk 0:01:57]} 22. Rfe1 {[%clk 0:00:50]}  d5 {[%clk 0:01:49]} 23. cxd5 {[%clk 0:00:44]}  Bc3 {[%clk 0:01:45]} 24. d6 {[%clk 0:00:28]}  Bxe1 {[%clk 0:01:39]} 25. d7 {[%clk 0:00:28]}  Rxe2 {[%clk 0:01:36]} 26. dxc8=Q {[%clk 0:00:28]}  Bxf2+ {[%clk 0:01:22]} 27. Kf1 {[%clk 0:00:28]}  Qxc8 {[%clk 0:01:22]} 28. Kxe2 {[%clk 0:00:28]}  Bxf3+ {[%clk 0:01:18]} 29. Qxf3 {[%clk 0:00:15]}  Qc2+ {[%clk 0:01:14]} 30. Rd2 {[%clk 0:00:12]}  Nd4+ {[%clk 0:01:13]} 31. Kf1 {[%clk 0:00:13]}  Qxd2 {[%clk 0:00:57]} 32. Qxf2 {[%clk 0:00:12]} 1-0


[Site "https://www.chess.com"]

[Event "Titled Tuesday Blitz May 2 Early 2023"]
[White "Caruana, Fabiano"]
[Black "Nguyen, Ngoc Truong Son"]
[WhiteFideId "2020009"]
[BlackFideId "12401110"]
[WhiteElo "2837"]
[BlackElo "2556"]
[Result "1-0"]
[Round "09"]
[TimeControl "180+2"]
[Date "2023.05.02"]
[WhiteClock "0:01:58"]
[BlackClock "0:00:18"]

1. e4 {[%clk 0:03:00]}  e5 {[%clk 0:02:48]} 2. Nf3 {[%clk 0:03:00]}  Nf6 {[%clk 0:02:48]} 3. Nxe5 {[%clk 0:02:59]}  d6 {[%clk 0:02:48]} 4. Nf3 {[%clk 0:03:00]}  Nxe4 {[%clk 0:02:48]} 5. d4 {[%clk 0:03:01]}  d5 {[%clk 0:02:47]} 6. Bd3 {[%clk 0:03:01]}  Bf5 {[%clk 0:02:46]} 7. O-O {[%clk 0:03:01]}  Be7 {[%clk 0:02:32]} 8. Re1 {[%clk 0:03:01]}  O-O {[%clk 0:02:21]} 9. Nbd2 {[%clk 0:03:02]}  Nd6 {[%clk 0:02:18]} 10. Bxf5 {[%clk 0:03:01]}  Nxf5 {[%clk 0:02:19]} 11. Nf1 {[%clk 0:03:01]}  c6 {[%clk 0:02:05]} 12. Qd3 {[%clk 0:03:00]}  g6 {[%clk 0:01:50]} 13. Ng3 {[%clk 0:02:59]}  Nxg3 {[%clk 0:01:46]} 14. hxg3 {[%clk 0:03:00]}  Nd7 {[%clk 0:01:46]} 15. c3 {[%clk 0:02:55]}  Re8 {[%clk 0:01:46]} 16. Bf4 {[%clk 0:02:52]}  Bf6 {[%clk 0:01:39]} 17. g4 {[%clk 0:02:49]}  Bg7 {[%clk 0:01:22]} 18. g5 {[%clk 0:02:45]}  Qb6 {[%clk 0:01:12]} 19. b3 {[%clk 0:02:43]}  a5 {[%clk 0:01:10]} 20. g3 {[%clk 0:02:40]}  Nf8 {[%clk 0:01:02]} 21. Be5 {[%clk 0:02:38]}  Nd7 {[%clk 0:00:59]} 22. Bxg7 {[%clk 0:02:34]}  Kxg7 {[%clk 0:01:00]} 23. Kg2 {[%clk 0:02:34]}  h5 {[%clk 0:00:54]} 24. gxh6+ {[%clk 0:02:34]}  Kxh6 {[%clk 0:00:53]} 25. Qd2+ {[%clk 0:02:29]}  Kg7 {[%clk 0:00:53]} 26. Qf4 {[%clk 0:02:28]}  Qd8 {[%clk 0:00:32]} 27. Rxe8 {[%clk 0:02:24]}  Qxe8 {[%clk 0:00:33]} 28. Rh1 {[%clk 0:02:24]}  Qe4 {[%clk 0:00:28]} 29. Qh6+ {[%clk 0:02:21]}  Kf6 {[%clk 0:00:28]} 30. Rh4 {[%clk 0:02:11]}  Qe6 {[%clk 0:00:20]} 31. Rf4+ {[%clk 0:02:00]}  Ke7 {[%clk 0:00:19]} 32. Ng5 {[%clk 0:02:00]}  Qe2 {[%clk 0:00:18]} 33. Rxf7+ {[%clk 0:01:58]} 1-0


[Site "https://www.chess.com"]